bitfinex/quotes_SOLUSD_20250919
["timestamp","ask_amount","ask_price","bid_price","bid_amount"]
[1758243548660,0.06,248.1,248.09,34.99079527]
[1758243550565,0.06,248.1,248.09,36.60353592]
[1758243551068,0.06,248.1,248.09,5.64353592]
[1758243551249,0.06,248.1,248.09,1.61274065]
[1758243551250,0.76,248.1,248.09,1.61274065]
[1758243551448,0.76,248.1,248.09,32.57274065]
[1758243551650,0.76,248.1,248.09,36.60353592]
[1758243554845,0.06,248.1,248.09,36.60353592]
[1758243557158,0.76,248.1,248.09,36.60353592]
[1758243557782,0.06,248.1,248.09,36.60353592]
[1758243559674,0.76,248.1,248.09,36.60353592]
[1758243560047,0.06,248.1,248.09,36.60353592]
[1758243561569,0.76,248.1,248.09,5.64353592]
[1758243561768,0.76,248.1,248.09,36.60353592]
[1758243567277,0.76,248.1,248.09,5.64353592]
[1758243567572,0.76,248.1,248.09,36.58353592]
[1758243571267,0.76,248.1,248.09,5.64353592]
[1758243571579,0.76,248.1,248.09,36.58353592]
[1758243573478,0.76,248.1,248.09,5.64353592]
[1758243573695,0.76,248.1,248.09,36.58353592]
[1758243573885,0.06,248.1,248.09,36.58353592]
[1758243575658,0.73,248.1,248.09,36.58353592]
[1758243575867,0.06,248.1,248.09,36.58353592]
[1758243579773,0.73,248.1,248.09,36.58353592]
[1758243579964,0.06,248.1,248.09,36.58353592]
[1758243581786,0.73,248.1,248.09,36.58353592]
[1758243582090,0.06,248.1,248.09,36.58353592]
[1758243582876,0.73,248.1,248.09,36.58353592]
[1758243587299,0.06,248.1,248.09,42.33902691]
[1758243587499,0.06,248.11,248.09,42.74210643]
[1758243587668,0.06,248.11,248.1,5.75549099]
[1758243588180,0.06,248.11,248.1,7.36803659]
[1758243589188,0.06,248.11,248.1,11.39866939]
[1758243590892,0.73,248.11,248.1,11.39866939]
[1758243591570,0.73,248.11,248.1,42.33866939]
[1758243591994,0.73,248.11,248.1,11.39866939]
[1758243592200,0.73,248.11,248.1,42.33866939]
[1758243604389,0.73,248.11,248.1,11.39866939]
[1758243604590,0.73,248.11,248.1,42.33866939]
[1758243606910,0.06,248.11,248.1,42.33866939]
[1758243607313,0.1,248.12,248.1,42.33866939]
[1758243608313,0.1,248.12,248.1,40.72612379]
[1758243608515,0.1,248.12,248.11,1.6125456]
[1758243609415,0.1,248.12,248.11,5.64301595]
[1758243612703,0.1,248.13,248.11,5.64301595]
[1758243613013,0.1,248.13,248.12,34.95030791]
[1758243613219,0.06,248.14,248.12,40.53824334]
[1758243613390,0.1,248.15,248.12,50.61401312]
[1758243613728,0.1,248.15,248.14,26.0]
[1758243613917,0.1,248.15,248.14,56.92]
[1758243615014,0.1,248.15,248.14,60.94998307]
[1758243615220,0.1,248.15,248.14,62.56239867]
[1758243616420,0.82,248.15,248.14,62.56239867]
[1758243617921,0.1,248.15,248.14,62.56239867]
[1758243618302,0.1,248.16,248.14,68.1503341]
[1758243618822,0.72,248.17,248.14,78.22529178]
[1758243619723,0.72,248.16,248.14,78.22529178]
[1758243620317,0.72,248.18,248.17,26.0]
[1758243620521,0.72,248.18,248.17,30.92]
[1758243620711,0.72,248.18,248.17,34.94949591]
[1758243621421,0.72,248.18,248.17,4.02949591]
[1758243621599,0.72,248.18,248.17,47.04163804]
[1758243621806,0.72,248.18,248.16,30.92]
[1758243622106,13.59559401,248.16,248.13,12.12506723]
[1758243622305,0.72,248.15,248.13,0.03]
[1758243622497,0.72,248.15,248.13,26.03]
[1758243622700,0.06,248.17,248.13,26.03]
[1758243622701,0.72,248.14,248.13,26.03]
[1758243623600,0.72,248.14,248.13,30.06014548]
[1758243623801,0.06,248.17,248.13,30.06014548]
[1758243624006,0.72,248.16,248.14,30.92]
[1758243624210,0.06,248.17,248.16,26.0]
[1758243624923,0.78,248.17,248.16,30.02965828]
[1758243625422,0.78,248.17,248.16,26.0]
[1758243627820,0.78,248.17,248.16,30.02965828]
[1758243628015,0.78,248.17,248.16,26.0]
[1758243630625,0.75,248.17,248.16,30.02965828]
[1758243631713,0.06,248.17,248.16,30.02965828]
[1758243632342,0.75,248.17,248.16,30.02965828]
[1758243632846,0.06,248.17,248.16,30.02965828]
[1758243635535,0.06,248.17,248.16,60.94965828]
[1758243639533,0.75,248.17,248.16,60.94965828]
[1758243639710,0.75,248.17,248.16,60.97965828]
[1758243641420,0.06,248.17,248.16,60.97965828]
[1758243643739,0.75,248.17,248.16,60.97965828]
[1758243644438,0.75,248.17,248.16,30.05965828]
[1758243644734,0.75,248.17,248.16,60.95965828]
[1758243645416,0.75,248.17,248.16,30.05965828]
[1758243645622,0.75,248.17,248.16,60.95965828]
[1758243647647,0.75,248.17,248.16,26.03]
[1758243647839,0.75,248.17,248.16,56.93]
[1758243648941,0.75,248.17,248.16,60.95965828]
[1758243650449,0.75,248.17,248.16,56.93]
[1758243651328,0.75,248.17,248.16,60.95965828]
[1758243652453,0.75,248.17,248.16,56.93]
[1758243653851,0.75,248.17,248.16,60.95965828]
[1758243654226,0.06,248.17,248.16,60.95965828]
[1758243657956,0.74,248.17,248.16,60.95965828]
[1758243658547,0.06,248.17,248.16,60.95965828]
[1758243663962,0.06,248.17,248.16,61.62965828]
[1758243664261,0.06,248.17,248.16,63.2419439]
[1758243665261,0.06,248.17,248.16,31.6719439]
[1758243665443,0.74,248.17,248.16,0.03]
[1758243666064,0.74,248.17,248.16,26.03]
[1758243666944,0.74,248.17,248.16,0.03]
[1758243667657,14.33559401,248.17,248.16,0.03]
[1758243668863,18.36508992,248.17,248.16,0.03]
[1758243669075,14.33559401,248.17,248.16,0.03]
[1758243670264,18.36508992,248.17,248.16,0.03]
[1758243671287,18.64941306,248.17,248.16,0.03]
[1758243671479,20.90326799,248.17,248.16,0.03]
[1758243672474,14.61991715,248.17,248.16,0.03]
[1758243672640,14.33559401,248.17,248.16,0.03]
[1758243672835,0.06,248.17,248.16,0.03]
[1758243673553,0.06,248.17,248.16,0.7]
[1758243674547,0.06,248.17,248.16,4.72965828]
[1758243676158,0.06,248.17,248.16,60.95965828]
[1758243676377,0.06,248.17,248.16,26.03]
[1758243676543,0.74,248.17,248.16,30.05965828]
[1758243676739,0.06,248.17,248.16,0.03]
[1758243676944,0.74,248.17,248.16,0.03]
[1758243679157,18.36508992,248.17,248.16,0.03]
[1758243681275,18.64941306,248.17,248.16,0.03]
[1758243681466,20.90326799,248.17,248.16,0.03]
[1758243683572,18.64941306,248.17,248.16,0.03]
[1758243683771,20.90326799,248.17,248.16,0.03]
[1758243685870,20.09250071,248.17,248.16,0.03]
[1758243686062,18.64941306,248.17,248.16,0.03]
[1758243686265,50.99250071,248.17,248.16,0.03]
[1758243686760,49.54941306,248.17,248.16,0.03]
[1758243686966,50.99250071,248.17,248.16,0.03]
[1758243689459,20.09250071,248.17,248.16,0.03]
[1758243689671,50.99250071,248.17,248.16,0.03]
[1758243690157,20.09250071,248.17,248.16,0.03]
[1758243690348,50.99250071,248.17,248.16,0.03]
[1758243694160,17.96941306,248.17,248.16,0.03]
[1758243694361,44.55559401,248.17,248.16,0.03]
[1758243694558,13.65559401,248.17,248.16,0.03]
[1758243694879,44.55559401,248.17,248.16,0.03]
[1758243695173,13.65559401,248.17,248.16,0.69]
[1758243696378,0.06,248.17,248.16,30.71965828]
[1758243708683,0.06,248.17,248.16,4.71965828]
[1758243711704,0.06,248.17,248.16,30.71965828]
[1758243711994,0.06,248.17,248.16,4.71965828]
[1758243712180,0.06,248.17,248.16,30.71965828]
[1758243712379,0.06,248.17,248.16,30.05965828]
[1758243712579,0.76,248.17,248.16,4.05965828]
[1758243712995,0.76,248.17,248.16,30.05965828]
[1758243713203,0.76,248.17,248.16,4.05965828]
[1758243713701,0.76,248.17,248.16,30.05965828]
[1758243713898,0.06,248.17,248.16,30.05965828]
[1758243723402,0.78,248.17,248.16,30.05965828]
[1758243723614,0.06,248.17,248.16,30.05965828]
[1758243726214,0.78,248.17,248.16,30.05965828]
[1758243726506,0.06,248.17,248.16,30.05965828]
[1758243727498,0.78,248.17,248.16,30.05965828]
[1758243727686,0.06,248.17,248.16,30.05965828]
[1758243728593,0.78,248.17,248.16,30.05965828]
[1758243728899,0.06,248.17,248.16,30.05965828]
[1758243729287,0.78,248.17,248.16,30.05965828]
[1758243729487,0.06,248.17,248.16,30.05965828]
[1758243731908,0.06,248.17,248.16,30.74965828]
[1758243732309,0.06,248.17,248.16,30.05965828]
[1758243732515,0.06,248.17,248.16,30.74965828]
[1758243733009,0.06,248.17,248.16,30.05965828]
[1758243734207,0.78,248.17,248.16,30.05965828]
[1758243735913,0.78,248.17,248.16,26.03]
[1758243736615,0.78,248.17,248.16,30.05965828]
[1758243736801,0.06,248.17,248.16,30.05965828]
[1758243737002,0.06,248.17,248.16,30.74965828]
[1758243737197,0.06,248.17,248.16,30.05965828]
[1758243738313,0.06,248.17,248.16,4.05965828]
[1758243738510,0.78,248.17,248.16,4.05965828]
[1758243740708,0.78,248.17,248.16,30.05965828]
[1758243741017,0.78,248.17,248.16,26.03]
[1758243741208,0.78,248.17,248.16,0.03]
[1758243741209,14.37559401,248.17,248.16,0.03]
[1758243741916,18.40508992,248.17,248.16,0.03]
[1758243743820,18.68941306,248.17,248.16,0.03]
[1758243744120,20.13250071,248.17,248.16,0.03]
[1758243745808,20.94441871,248.17,248.16,0.03]
[1758243746636,18.68941306,248.17,248.16,0.03]
[1758243747913,20.94441871,248.17,248.16,0.03]
[1758243748113,51.82441871,248.17,248.16,0.03]
[1758243748712,20.94441871,248.17,248.16,0.03]
[1758243748909,51.82441871,248.17,248.16,0.03]
[1758243749419,18.68941306,248.17,248.16,0.03]
[1758243749620,49.56941306,248.17,248.16,0.03]
[1758243750330,18.68941306,248.17,248.16,0.03]
[1758243750522,49.56941306,248.17,248.16,0.03]
[1758243751122,18.68941306,248.17,248.16,0.03]
[1758243753027,14.65991715,248.17,248.16,0.03]
[1758243754421,14.37559401,248.17,248.16,0.03]
[1758243754617,13.65559401,248.17,248.16,0.03]
[1758243754820,0.06,248.17,248.16,0.73]
[1758243755206,0.06,248.17,248.16,30.75965828]
[1758243761937,0.06,248.17,248.16,30.05965828]
[1758243762340,0.75,248.17,248.16,30.05965828]
[1758243762535,0.06,248.17,248.16,30.05965828]
[1758243763919,14.34559401,248.17,248.16,0.03]
[1758243764435,20.91441871,248.17,248.16,0.03]
[1758243765822,18.65941306,248.17,248.16,0.03]
[1758243766035,20.91441871,248.17,248.16,0.03]
[1758243766238,18.65941306,248.17,248.16,0.03]
[1758243767019,20.91441871,248.17,248.16,0.03]
[1758243767743,18.65941306,248.17,248.16,0.03]
[1758243767947,20.91441871,248.17,248.16,0.03]
[1758243778755,20.91441871,248.17,248.13,0.03]
[1758243778756,39.87991715,248.14,248.13,0.03]
[1758243778959,75.26992845,248.14,248.13,0.03]
[1758243779272,73.7049228,248.14,248.13,0.03]
[1758243780435,77.73490587,248.14,248.13,0.03]
[1758243781053,49.10991152,248.14,248.13,0.03]
[1758243781363,79.98991152,248.14,248.13,0.03]
[1758243782138,17.62557708,248.14,248.13,0.03]
[1758243782537,51.73490587,248.14,248.13,0.03]
[1758243782737,49.47990022,248.14,248.13,0.03]
[1758243783055,51.73490587,248.14,248.13,0.03]
[1758243783258,20.85490587,248.14,248.13,0.03]
[1758243783559,51.73490587,248.14,248.13,0.03]
[1758243784044,53.98991152,248.14,248.13,0.03]
[1758243784639,18.59990022,248.14,248.13,0.03]
[1758243784861,51.73490587,248.14,248.13,0.03]
[1758243787639,20.85490587,248.14,248.13,0.03]
[1758243787853,51.73490587,248.14,248.13,0.03]
[1758243789460,53.98991152,248.14,248.13,0.03]
[1758243789661,39.59559401,248.12,248.11,1e-08]
[1758243789964,73.0149228,248.12,248.11,1e-08]
[1758243790263,73.7049228,248.12,248.11,1e-08]
[1758243790949,77.73523071,248.12,248.11,1e-08]
[1758243791942,46.85523071,248.12,248.11,1e-08]
[1758243792141,77.73523071,248.12,248.11,1e-08]
[1758243792661,46.85523071,248.12,248.11,1e-08]
[1758243793178,77.73523071,248.12,248.11,1e-08]
[1758243793670,46.85523071,248.12,248.11,1e-08]
[1758243793973,77.73523071,248.12,248.11,1e-08]
[1758243794767,17.62590192,248.12,248.11,1e-08]
[1758243794974,48.50590192,248.12,248.11,0.67000001]
[1758243795272,48.64806349,248.12,248.11,0.67000001]
[1758243795957,48.79022506,248.12,248.11,0.67000001]
[1758243796466,48.79022506,248.12,248.11,1e-08]
[1758243796853,48.79022506,248.12,248.11,0.67000001]
[1758243797067,17.62590192,248.12,248.11,0.67000001]
[1758243797254,44.75991715,248.12,248.11,0.67000001]
[1758243797661,13.73775558,248.12,248.11,0.67000001]
[1758243797848,44.61775558,248.12,248.11,0.67000001]
[1758243798049,44.75991715,248.12,248.11,0.67000001]
[1758243799573,13.87991715,248.12,248.11,0.67000001]
[1758243799775,44.75991715,248.12,248.11,0.67000001]
[1758243800271,48.79022506,248.12,248.11,1e-08]
[1758243800479,51.73523071,248.12,248.11,1e-08]
[1758243801568,51.04523071,248.12,248.11,1e-08]
[1758243801966,51.73523071,248.12,248.11,1e-08]
[1758243803786,20.85523071,248.12,248.11,1e-08]
[1758243803961,51.73523071,248.12,248.11,1e-08]
[1758243807771,50.92445768,248.12,248.11,1e-08]
[1758243808759,50.98445768,248.12,248.11,1e-08]
[1758243810579,50.98445768,248.12,248.07,0.03]
[1758243810580,0.28432314,248.08,248.02,0.03]
[1758243810776,46.20414977,248.07,248.02,0.03]
[1758243811086,46.88414977,248.07,248.02,0.03]
[1758243811783,50.91527001,248.07,248.02,0.03]
[1758243812096,13.87991715,248.06,248.05,1e-08]
[1758243812255,15.32414977,248.06,248.05,1e-08]
[1758243812458,16.00414977,248.06,248.05,1e-08]
[1758243813864,20.03543252,248.06,248.05,1e-08]
[1758243814766,21.47966514,248.06,248.05,1e-08]
[1758243815183,39.87991715,248.04,248.03,1e-08]
[1758243815387,73.64838239,248.04,248.03,1e-08]
[1758243815681,87.85930123,248.04,248.03,1e-08]
[1758243815884,91.89090903,248.04,248.03,1e-08]
[1758243817687,91.93090903,248.04,248.03,1e-08]
[1758243818068,87.59821117,248.04,248.03,1e-08]
[1758243820481,99.77528748,248.04,248.03,1e-08]
[1758243820683,61.25521444,248.04,248.03,1e-08]
[1758243820867,9.19822098,248.04,248.03,0.69000001]
[1758243821066,53.69381499,248.04,248.03,0.69000001]
[1758243821268,53.83597656,248.04,248.03,0.69000001]
[1758243821467,53.97813813,248.04,248.03,0.69000001]
[1758243821682,22.79381499,248.04,248.03,0.69000001]
[1758243821867,53.71381499,248.04,248.03,0.69000001]
[1758243822072,53.99813813,248.04,248.03,0.69000001]
[1758243822565,57.88758436,248.04,248.03,0.69000001]
[1758243823198,53.99813813,248.04,248.03,0.69000001]
[1758243823684,58.02974593,248.04,248.03,0.69000001]
[1758243824771,27.10974593,248.04,248.03,1e-08]
[1758243824971,58.02974593,248.04,248.03,0.69000001]
[1758243825264,27.10974593,248.04,248.03,0.69000001]
[1758243825588,58.02974593,248.04,248.03,1e-08]
[1758243826892,58.02974593,248.04,248.03,0.69000001]
[1758243827090,27.10974593,248.04,248.03,1e-08]
[1758243827599,58.00974593,248.04,248.03,1e-08]
[1758243827892,53.97813813,248.04,248.03,0.69000001]
[1758243829203,53.69381499,248.04,248.03,0.69000001]
[1758243829505,40.09822098,248.04,248.03,0.69000001]
[1758243829791,40.09822098,248.04,248.03,4.72177036]
[1758243830976,9.19822098,248.04,248.03,0.69000001]
[1758243834108,9.19822098,248.04,248.03,4.72177036]
[1758243834305,9.19822098,248.04,248.03,30.72177036]
[1758243834694,9.19822098,248.04,248.03,4.72177036]
[1758243838588,9.19822098,248.04,248.03,30.72177036]
[1758243840402,0.06,248.12,248.03,30.72177036]
[1758243840403,0.06,248.12,248.03,40.80119623]
[1758243840607,0.06,248.12,248.04,0.68]
[1758243840983,0.06,248.12,248.06,26.0]
[1758243841188,0.06,248.12,248.08,14.10835213]
[1758243841415,0.06,248.12,248.11,26.0]
[1758243841906,0.06,248.12,248.11,28.2925456]
[1758243842106,0.06,248.12,248.11,28.69559263]
[1758243842317,0.06,248.12,248.11,28.2925456]
[1758243843184,0.06,248.12,248.11,32.32301595]
[1758243843384,0.06,248.15,248.11,42.39919183]
[1758243843592,0.06,248.15,248.14,26.0]
[1758243843984,0.06,248.15,248.14,26.68]
[1758243845182,0.06,248.15,248.14,30.70998307]
[1758243845601,0.06,248.15,248.14,5.11298137]
[1758243845993,0.06,248.15,248.14,35.62998307]
[1758243846290,0.06,248.15,248.14,36.03298137]
[1758243848013,0.06,248.15,248.14,34.94998307]
[1758243848508,0.06,248.15,248.14,35.62998307]
[1758243850214,0.06,248.16,248.14,35.62998307]
[1758243850392,0.06,248.16,248.15,0.68]
[1758243851108,0.06,248.16,248.14,4.02998307]
[1758243851109,1e-08,248.16,248.14,4.02998307]
[1758243851321,1e-08,248.16,248.15,1.61222063]
[1758243851490,0.06,248.17,248.15,0.68]
[1758243851693,0.06,248.19,248.18,26.0]
[1758243851893,0.06,248.19,248.18,30.02933354]
[1758243852098,0.06,248.19,248.18,61.66933354]
[1758243852494,0.06,248.19,248.18,63.2814892]
[1758243853510,0.06,248.19,248.18,62.6014892]
[1758243853692,0.06,248.19,248.18,63.2814892]
[1758243854007,0.06,248.19,248.18,31.6414892]
[1758243854307,0.06,248.19,248.18,62.6014892]
[1758243855012,0.06,248.19,248.18,31.6414892]
[1758243855314,0.06,248.19,248.18,62.6014892]
[1758243856205,0.06,248.19,248.18,62.5814892]
[1758243858396,0.06,248.19,248.18,31.6414892]
[1758243858606,0.73,248.19,248.18,4.02933354]
[1758243859014,0.73,248.19,248.18,30.02933354]
[1758243859313,0.73,248.19,248.18,26.0]
[1758243860710,4.08851759,248.24,248.18,26.0]
[1758243860711,1e-08,248.24,248.22,26.0]
[1758243860897,1e-08,248.24,248.23,32.22]
[1758243861429,1e-08,248.24,248.23,0.66]
[1758243861621,0.67,248.33,248.26,26.0]
[1758243861919,0.67,248.33,248.3,26.0]
[1758243862628,0.67,248.33,248.31,4.02722403]
[1758243864625,0.67,248.32,248.31,4.02722403]
[1758243865499,0.7,248.35,248.31,4.02722403]
[1758243865821,0.1,248.37,248.34,26.0]
[1758243866414,0.7,248.36,248.34,26.0]
[1758243866618,0.1,248.37,248.34,26.0]
[1758243866798,0.7,248.36,248.34,26.0]
[1758243867198,0.7,248.36,248.35,26.0]
[1758243867621,0.7,248.36,248.35,30.02657539]
[1758243868199,0.1,248.37,248.36,26.0]
[1758243869600,0.1,248.37,248.35,47.60946401]
[1758243870121,0.1,248.37,248.35,48.26946401]
[1758243870307,0.1,248.37,248.35,47.60946401]
[1758243870625,0.8,248.37,248.35,47.58946401]
[1758243870922,0.1,248.37,248.35,47.58946401]
[1758243871105,13.59559401,248.41,248.38,26.0]
[1758243871426,13.59559401,248.41,248.38,30.02607621]
[1758243872701,13.59559401,248.41,248.38,26.0]
[1758243872908,13.59559401,248.41,248.34,26.0]
[1758243873113,13.59559401,248.39,248.34,26.0]
[1758243873322,13.59559401,248.37,248.34,26.0]
[1758243873617,0.7,248.36,248.34,26.0]
[1758243874230,13.87991715,248.41,248.34,30.02667212]
[1758243874408,13.59559401,248.37,248.34,30.02667212]
[1758243874827,14.29559401,248.41,248.35,0.71]
[1758243876002,14.29559401,248.41,248.36,4.02641327]
[1758243876202,13.59559401,248.39,248.35,26.0]
[1758243876420,0.7,248.38,248.35,26.0]
[1758243876621,0.7,248.37,248.35,26.0]
[1758243877013,0.7,248.36,248.35,26.0]
[1758243877513,0.7,248.36,248.35,4.02657539]
[1758243878617,13.59559401,248.41,248.35,4.73657539]
[1758243879007,13.59559401,248.41,248.35,14.80301388]
[1758243879207,13.59559401,248.41,248.37,26.0]
[1758243879409,0.7,248.41,248.38,4.02608905]
[1758243881328,0.7,248.4,248.38,4.02608905]
[1758243882014,13.59559401,248.41,248.38,4.02608905]
[1758243882317,14.29559401,248.41,248.38,4.02608905]
[1758243883116,0.7,248.4,248.37,26.0]
[1758243883315,0.7,248.39,248.37,30.02621157]
[1758243884828,14.29559401,248.41,248.37,30.02621157]
[1758243885031,0.06,248.42,248.37,30.02621157]
[1758243885330,0.7,248.41,248.37,30.02621157]
[1758243886419,0.7,248.41,248.38,30.02600759]
[1758243886731,0.06,248.42,248.38,30.02600759]
[1758243886929,0.76,248.42,248.38,30.02600759]
[1758243888031,0.06,248.42,248.38,30.02600759]
[1758243888209,0.06,248.42,248.38,30.73600759]
[1758243888527,0.76,248.42,248.38,30.73600759]
[1758243888710,0.76,248.42,248.38,40.09123023]
[1758243888711,1e-08,248.42,248.38,40.09123023]
[1758243888907,1e-08,248.42,248.41,26.0]
[1758243889327,1e-08,248.42,248.41,26.71]
[1758243889831,1e-08,248.42,248.41,28.32053288]
[1758243890014,0.06,248.45,248.42,26.0]
[1758243890212,0.06,248.47,248.46,26.0]
[1758243890529,0.06,248.47,248.46,30.02479272]
[1758243890730,0.06,248.47,248.46,30.73479272]
[1758243891227,0.06,248.47,248.46,42.81281675]
[1758243891810,0.76,248.47,248.46,42.10281675]
[1758243892130,0.76,248.47,248.46,30.02479272]
[1758243893533,0.76,248.47,248.46,26.0]
[1758243893712,0.76,248.47,248.38,36.25608905]
[1758243894027,13.59559401,248.45,248.38,26.17371368]
[1758243894335,0.7,248.44,248.38,26.17371368]
[1758243894728,0.7,248.44,248.41,26.0]
[1758243895125,13.59559401,248.42,248.38,16.10849104]
[1758243895321,14.26559401,248.42,248.38,4.02608905]
[1758243895633,14.26559401,248.42,248.38,30.02608905]
[1758243898320,13.59559401,248.46,248.4,26.0]
[1758243898525,0.69,248.45,248.4,26.0]
[1758243898826,13.59559401,248.43,248.4,26.0]
[1758243899025,0.69,248.42,248.4,26.0]
[1758243900534,0.69,248.41,248.4,26.0]
[1758243900832,4.02489413,248.46,248.38,30.02597633]
[1758243901135,0.69,248.43,248.38,4.02597633]
[1758243901522,0.69,248.43,248.38,30.02597633]
[1758243901714,0.06,248.47,248.4,26.0]
[1758243901925,0.06,248.47,248.41,0.69]
[1758243902235,0.06,248.47,248.42,26.0]
[1758243902447,0.06,248.47,248.43,0.69]
[1758243902628,0.06,248.47,248.46,26.0]
[1758243902829,0.06,248.47,248.46,26.69]
[1758243903846,0.06,248.47,248.46,30.02479272]
[1758243904048,0.06,248.47,248.46,30.71479272]
[1758243905618,0.06,248.47,248.46,30.02479272]
[1758243909235,0.06,248.47,248.46,30.71479272]
[1758243909943,0.06,248.47,248.46,30.02479272]
[1758243910149,0.06,248.47,248.46,30.71479272]
[1758243911238,0.06,248.47,248.46,30.02479272]
[1758243911433,0.06,248.47,248.46,30.71479272]
[1758243912743,0.06,248.47,248.46,30.02479272]
[1758243914240,0.75,248.47,248.46,30.02479272]
[1758243914539,0.75,248.47,248.45,26.0]
[1758243914761,0.75,248.47,248.43,4.02527729]
[1758243914762,14.28559401,248.46,248.43,4.02527729]
[1758243915054,0.69,248.45,248.43,30.02527729]
[1758243915451,0.69,248.44,248.43,30.02527729]
[1758243915654,0.06,248.47,248.43,30.02527729]
[1758243915955,0.69,248.46,248.43,30.02527729]
[1758243916130,0.69,248.45,248.43,26.0]
[1758243916334,0.06,248.47,248.42,4.02542987]
[1758243916535,0.06,248.47,248.43,26.0]
[1758243917065,0.69,248.46,248.43,26.0]
[1758243917265,0.69,248.45,248.43,26.0]
[1758243917570,0.48879,248.45,248.43,26.0]
[1758243918947,0.06,248.47,248.43,26.0]
[1758243919660,13.59559401,248.45,248.43,26.0]
[1758243919863,14.28559401,248.45,248.4,4.74562694]
[1758243920055,14.28559401,248.45,248.4,30.74562694]
[1758243920445,14.28559401,248.45,248.41,0.69]
[1758243921164,14.28559401,248.45,248.4,30.05562694]
[1758243921351,14.28559401,248.45,248.4,30.74562694]
[1758243921551,13.59559401,248.46,248.41,0.69]
[1758243921756,14.28559401,248.46,248.41,0.69]
[1758243922558,13.59559401,248.46,248.41,4.71544416]
[1758243922861,0.69,248.45,248.41,4.71544416]
[1758243923263,0.69,248.44,248.41,4.02544416]
[1758243923447,0.06,248.47,248.41,4.02544416]
[1758243923762,13.59559401,248.46,248.41,4.71544416]
[1758243923964,0.69,248.46,248.41,4.71544416]
[1758243925362,0.69,248.46,248.41,4.02544416]
[1758243925563,0.69,248.46,248.42,4.73534077]
[1758243925776,0.69,248.46,248.42,4.02534077]
[1758243926061,13.59559401,248.46,248.42,4.02534077]
[1758243926258,0.71,248.46,248.42,4.73534077]
[1758243926764,14.30559401,248.45,248.4,30.05560412]
[1758243927069,0.71,248.44,248.4,30.05560412]
[1758243927444,14.30559401,248.46,248.4,30.76560412]
[1758243927646,14.30559401,248.46,248.41,26.0]
[1758243927969,14.30559401,248.46,248.41,26.71]
[1758243928162,14.30559401,248.46,248.42,0.71]
[1758243928760,14.30559401,248.46,248.41,26.0]
[1758243928966,14.30559401,248.46,248.41,26.71]
[1758243929768,14.30559401,248.46,248.41,30.73544843]
[1758243929966,14.30559401,248.46,248.41,30.02544843]
[1758243930168,14.30559401,248.46,248.41,30.73544843]
[1758243930355,14.30559401,248.46,248.42,0.71]
[1758243930664,14.30559401,248.46,248.42,0.74]
[1758243931178,0.71,248.45,248.42,0.03]
[1758243935071,13.59559401,248.43,248.42,0.03]
[1758243938453,13.59559401,248.45,248.42,0.03]
[1758243938982,13.59559401,248.46,248.43,0.71]
[1758243939149,13.59559401,248.46,248.44,0.71]
[1758243939351,13.65559401,248.47,248.44,0.71]
[1758243940776,13.65559401,248.47,248.44,4.73505283]
[1758243941255,13.65559401,248.47,248.44,4.02505283]
[1758243941974,13.65559401,248.47,248.44,4.73505283]
[1758243942352,14.36559401,248.47,248.43,26.0]
[1758243942557,0.71,248.46,248.43,26.0]
[1758243942774,0.71,248.45,248.43,26.0]
[1758243943165,0.71,248.45,248.42,0.03]
[1758243944371,0.71,248.44,248.42,0.03]